fUSD/lending_fUSD_20251123
["ID","MTS","AMOUNT","RATE_DAILY","PERIOD"]
[394729832,1763919103311,-500.0,0.00038904,8]
[394729833,1763919103324,-500.0,0.00038904,8]
[394729834,1763919103333,-888.77,0.00038904,8]
[394729835,1763919103342,-500.0,0.00038904,8]
[394729836,1763919103352,-500.0,0.00038904,8]
[394729837,1763919103361,-552.9,0.00038904,8]
[394729838,1763919103370,-781.87,0.00038904,8]
[394729839,1763919103380,-500.0,0.00038904,8]
[394729840,1763919103389,-500.0,0.00038904,8]
[394729841,1763919103398,-500.0,0.00038904,8]
[394729842,1763919103407,-500.0,0.00038904,8]
[394729843,1763919103417,-500.0,0.00038904,8]
[394729844,1763919103426,-500.0,0.00038904,8]
[394729845,1763919103436,-500.0,0.00038904,8]
[394729846,1763919103445,-500.0,0.00038904,8]
[394729847,1763919103454,-700.87,0.00038904,8]
[394729848,1763919103463,-932.34,0.00038904,8]
[394729849,1763919103473,-500.0,0.00038904,8]
[394729850,1763919103482,-500.0,0.00038904,8]
[394729851,1763919103491,-500.0,0.00038904,8]
[394729852,1763919103501,-500.0,0.00038904,8]
[394729853,1763919103510,-609.70781548,0.00038904,8]
[394729854,1763919103519,-500.0,0.00038904,8]
[394729855,1763919103529,-571.32,0.00038904,8]
[394729856,1763919103538,-823.48,0.00038904,8]
[394729857,1763919103548,-500.0,0.00038904,8]
[394729858,1763919103558,-500.0,0.00038904,8]
[394729859,1763919103568,-500.0,0.00038904,8]
[394729860,1763919103577,-500.0,0.00038904,8]
[394729861,1763919103586,-845.14,0.00038904,8]
[394729862,1763919103595,-536.71,0.00038904,8]
[394729863,1763919103605,-569.32,0.00038904,8]
[394729864,1763919103614,-500.0,0.00038904,8]
[394729865,1763919103624,-500.0,0.00038904,8]
[394729866,1763919103634,-500.0,0.00038904,8]
[394729867,1763919103643,-599.19,0.00038904,8]
[394729868,1763919103653,-500.0,0.00038904,8]
[394729869,1763919103662,-794.34,0.00038904,8]
[394729870,1763919103672,-500.0,0.00038904,8]
[394729871,1763919103681,-500.0,0.00038904,8]
[394729872,1763919103691,-500.0,0.00038904,8]
[394729873,1763919103701,-500.0,0.00038904,8]
[394729874,1763919103710,-500.0,0.00038904,8]
[394729875,1763919103719,-748.39,0.00038904,8]
[394729876,1763919103729,-500.0,0.00038904,8]
[394729877,1763919103739,-500.0,0.00038904,8]
[394729878,1763919103748,-500.0,0.00038904,8]
[394729879,1763919103757,-500.0,0.00038904,8]
[394729880,1763919103766,-514.27596798,0.00038904,8]
[394729881,1763919103776,-590.62230219,0.00038904,8]
[394729882,1763919103785,-736.62,0.00038904,8]
[394729883,1763919103795,-500.0,0.00038904,8]
[394729884,1763919103804,-500.0,0.00038904,8]
[394729885,1763919103814,-500.0,0.00038904,8]
[394729886,1763919103824,-500.0,0.00038904,8]
[394729887,1763919103834,-500.0,0.00038904,8]
[394729888,1763919103843,-500.0,0.00038904,8]
[394729889,1763919103852,-500.0,0.00038904,8]
[394729890,1763919103861,-500.0,0.00038904,8]
[394729891,1763919103870,-527.65202071,0.00038904,8]
[394729892,1763919103880,-500.0,0.00038904,8]
[394729893,1763919103889,-500.0,0.00038904,8]
[394729894,1763919103898,-500.0,0.00038904,8]
[394729895,1763919103908,-500.0,0.00038904,8]
[394729896,1763919103917,-812.26,0.00038904,8]
[394729897,1763919103927,-500.0,0.00038904,8]
[394729898,1763919103936,-1298.41,0.00038904,8]
[394729899,1763919103945,-500.0,0.00038904,8]
[394729900,1763919103955,-500.0,0.00038904,8]
[394729901,1763919103965,-500.0,0.00038904,8]
[394729902,1763919103974,-500.0,0.00038904,8]
[394729903,1763919103984,-500.0,0.00038904,8]
[394729904,1763919103995,-500.0,0.00038904,8]
[394729905,1763919104008,-500.0,0.00038904,8]
[394729906,1763919104017,-560.74,0.00038904,8]
[394729907,1763919104026,-500.0,0.00038904,8]
[394729908,1763919104036,-500.0,0.00038904,8]
[394729909,1763919104047,-1042.12,0.00038904,8]
[394729910,1763919104056,-694.37,0.00038904,8]
[394729911,1763919104065,-500.0,0.00038904,8]
[394729912,1763919104076,-500.0,0.00038904,8]
[394729913,1763919104087,-500.0,0.00038904,8]
[394729914,1763919104096,-500.0,0.00038904,8]
[394729915,1763919104105,-500.0,0.00038904,8]
[394729916,1763919104115,-500.0,0.00038904,8]
[394729917,1763919104125,-708.7,0.00038904,8]
[394729918,1763919104135,-636.31,0.00038904,8]
[394729919,1763919104146,-500.0,0.00038904,8]
[394729920,1763919104156,-518.59670094,0.00038904,8]
[394729921,1763919104165,-500.0,0.00038904,8]
[394729922,1763919104175,-500.0,0.00038904,8]
[394729923,1763919104184,-500.0,0.00038904,7]
[394729924,1763919104193,-500.0,0.00038904,8]
[394729925,1763919104203,-893.23,0.00038904,8]
[394729926,1763919104212,-500.0,0.00038904,8]
[394729927,1763919104222,-500.0,0.00038904,8]
[394729928,1763919104232,-425.91011338,0.00038904,8]
[394729929,1763919104242,-500.0,0.00038904,8]
[394729930,1763919104252,-500.0,0.00038904,8]
[394729931,1763919104262,-915.3,0.00038904,8]
[394729932,1763919104271,-636.78,0.00038904,8]
[394729933,1763919104281,-300.0,0.00038904,2]
[394729934,1763919104291,-500.0,0.00038904,8]
[394729935,1763919104301,-500.0,0.00038904,8]
[394729936,1763919104310,-500.0,0.00038904,8]
[394729937,1763919104323,-500.0,0.00038904,8]
[394729938,1763919104332,-590.82,0.00038904,8]
[394729939,1763919104342,-500.0,0.00038904,8]
[394729940,1763919104351,-500.0,0.00038904,8]
[394729941,1763919104361,-500.0,0.00038904,8]
[394729942,1763919104370,-610.8,0.00038904,8]
[394729943,1763919104380,-500.0,0.00038904,8]
[394729944,1763919104390,-500.0,0.00038904,8]
[394729945,1763919104399,-500.0,0.00038904,8]
[394729946,1763919104409,-500.0,0.00038904,8]
[394729947,1763919104418,-500.0,0.00038904,8]
[394729948,1763919104428,-1020.19,0.00038904,8]
[394729949,1763919104438,-500.0,0.00038904,8]
[394729950,1763919104455,-500.0,0.00038904,8]
[394729951,1763919104464,-500.0,0.00038904,8]
[394729952,1763919104474,-500.0,0.00038904,8]
[394729953,1763919104484,-500.0,0.00038904,8]
[394729954,1763919104494,-500.0,0.00038904,8]
[394729955,1763919104503,-852.21,0.00038904,8]
[394729956,1763919104513,-658.87,0.00038904,8]
[394729957,1763919104523,-525.23,0.00038904,8]
[394729958,1763919104532,-500.0,0.00038904,8]
[394729959,1763919104542,-500.0,0.00038904,8]
[394729960,1763919104553,-500.0,0.00038904,8]
[394729961,1763919104563,-500.0,0.00038904,8]
[394729962,1763919104573,-500.0,0.00038904,8]
[394729963,1763919104583,-500.0,0.00038904,8]
[394729964,1763919104592,-673.98,0.00038904,8]
[394729965,1763919104601,-500.0,0.00038904,8]
[394729966,1763919104610,-500.0,0.00038904,8]
[394729967,1763919104620,-554.93,0.00038904,8]
[394729968,1763919104630,-500.0,0.00038904,8]
[394729969,1763919104639,-581.1,0.00038904,8]
[394729970,1763919104652,-500.0,0.00038904,8]
[394729971,1763919104662,-500.0,0.00038904,8]
[394729972,1763919104674,-500.0,0.00038904,8]
[394729973,1763919104683,-639.82,0.00038904,8]
[394729974,1763919104693,-360.64456391,0.00038904,8]
[394729975,1763919104703,-500.0,0.00038904,8]
[394729976,1763919104714,-508.12,0.00038904,8]
[394729977,1763919104723,-500.0,0.00038904,8]
[394729978,1763919104733,-500.0,0.00038904,8]
[394729979,1763919104743,-965.62,0.00038904,8]
[394729980,1763919104751,-500.0,0.00038904,8]
[394729981,1763919104760,-500.0,0.00038904,8]
[394729982,1763919104769,-500.0,0.00038904,8]
[394729983,1763919104780,-507.8,0.00038904,8]
[394729984,1763919104789,-542.89,0.00038904,8]
[394729985,1763919104799,-500.0,0.00038904,8]
[394729986,1763919104808,-500.0,0.00038904,8]
[394729987,1763919104817,-427.51916656,0.00038904,8]
[394729988,1763919104826,-500.0,0.00038904,8]
[394729989,1763919104835,-500.0,0.00038904,8]
[394729990,1763919104844,-500.0,0.00038904,8]
[394729991,1763919104853,-500.0,0.00038904,8]
[394729992,1763919104862,-500.0,0.00038904,8]
[394729993,1763919104871,-1013.72,0.00038904,8]
[394729994,1763919104881,-500.0,0.00038904,7]
[394729995,1763919104890,-1787.13,0.00038904,8]
[394729996,1763919104900,-500.0,0.00038904,8]
[394729997,1763919104909,-837.27,0.00038904,8]
[394729998,1763919104919,-500.0,0.00038904,8]
[394729999,1763919104928,-500.0,0.00038904,8]
[394730000,1763919104938,-500.0,0.00038904,8]
[394730001,1763919104947,-500.0,0.00038904,8]
[394730002,1763919104956,-500.0,0.00038904,8]
[394730003,1763919104965,-500.0,0.00038904,8]
[394730004,1763919104977,-500.0,0.00038904,8]
[394730005,1763919104986,-930.05,0.00038904,8]
[394730006,1763919104995,-500.0,0.00038904,8]
[394730007,1763919105008,-500.0,0.00038904,8]
[394730008,1763919105018,-500.0,0.00038904,8]
[394730009,1763919105029,-523.44,0.00038904,8]
[394730010,1763919105039,-500.0,0.00038904,8]
[394730011,1763919105055,-500.0,0.00038904,8]
[394730012,1763919105065,-500.0,0.00038904,8]
[394730013,1763919105077,-500.27,0.00038904,8]
[394730014,1763919105086,-500.0,0.00038904,8]
[394730015,1763919105095,-500.0,0.00038904,8]
[394730016,1763919105106,-248.57415978,0.00038904,8]
[394730017,1763919105116,-500.0,0.00038904,8]
[394730018,1763919105125,-500.0,0.00038904,8]
[394730019,1763919105136,-500.0,0.00038904,8]
[394730020,1763919105145,-500.0,0.00038904,8]
[394730021,1763919105155,-377.96629028,0.00038904,8]
[394730022,1763919105164,-500.0,0.00038904,8]
[394730023,1763919105174,-567.72,0.00038904,8]
[394730024,1763919105183,-500.0,0.00038904,8]
[394730025,1763919105192,-795.61,0.00038904,8]
[394730026,1763919105202,-500.0,0.00038904,8]
[394730027,1763919105211,-500.0,0.00038904,8]
[394730028,1763919105222,-799.49,0.00038904,8]
[394730029,1763919105231,-500.0,0.00038904,8]
[394730030,1763919105240,-500.0,0.00038904,8]
[394730031,1763919105251,-500.0,0.00038904,8]
[394730032,1763919105261,-500.0,0.00038904,8]
[394730033,1763919105270,-500.0,0.00038904,8]
[394730034,1763919105280,-500.0,0.00038904,8]
[394730035,1763919105289,-500.0,0.00038904,8]
[394730036,1763919105299,-500.0,0.00038904,8]
[394730037,1763919105308,-500.0,0.00038904,8]
[394730038,1763919105318,-500.0,0.00038904,8]
[394730039,1763919105328,-604.3,0.00038904,8]
[394730040,1763919105338,-500.0,0.00038904,8]
[394730041,1763919105347,-500.0,0.00038904,8]
[394730042,1763919105356,-500.0,0.00038904,8]
[394730043,1763919105366,-500.0,0.00038904,8]
[394730044,1763919105375,-203.99565922,0.00038904,8]
[394730045,1763919105384,-500.0,0.00038904,8]
[394730046,1763919105394,-500.0,0.00038904,8]
[394730047,1763919105408,-171.09226483,0.00038904,8]
[394730048,1763919105418,-500.0,0.00038904,8]
[394730049,1763919105427,-690.23,0.00038904,8]
[394730050,1763919105436,-500.0,0.00038904,8]
[394730051,1763919105445,-898.23,0.00038904,8]
[394730052,1763919105454,-932.69,0.00038904,8]
[394730053,1763919105463,-500.0,0.00038904,8]
[394730054,1763919105473,-500.0,0.00038904,8]
[394730055,1763919105481,-500.0,0.00038904,8]
[394730056,1763919105491,-500.0,0.00038904,8]
[394730057,1763919105500,-500.0,0.00038904,8]
[394730058,1763919105509,-599.33,0.00038904,8]
[394730059,1763919105518,-500.0,0.00038904,8]
[394730060,1763919105527,-500.0,0.00038904,8]
[394730061,1763919105536,-500.0,0.00038904,8]
[394730062,1763919105546,-500.0,0.00038904,8]
[394730063,1763919105555,-500.0,0.00038904,8]
[394730064,1763919105564,-500.0,0.00038904,8]
[394730065,1763919105576,-1310.44,0.00038904,8]
[394730066,1763919105585,-500.0,0.00038904,8]
[394730067,1763919105594,-1420.95,0.00038904,8]
[394730068,1763919105604,-255.54783976,0.00038904,8]
[394730069,1763919105613,-500.0,0.00038904,8]
[394730070,1763919105624,-500.0,0.00038904,8]
[394730071,1763919105633,-500.0,0.00038904,8]
[394730072,1763919105642,-500.0,0.00038904,8]
[394730073,1763919105651,-500.0,0.00038904,8]
[394730074,1763919105661,-500.0,0.00038904,8]
[394730075,1763919105671,-1232.79,0.00038904,8]
[394730076,1763919105681,-500.0,0.00038904,8]
[394730077,1763919105692,-500.0,0.00038904,8]
[394730078,1763919105702,-500.0,0.00038904,8]
[394730079,1763919105712,-500.0,0.00038904,8]
[394730080,1763919105721,-780.02,0.00038904,8]
[394730081,1763919105730,-500.0,0.00038904,8]
[394730082,1763919105739,-500.0,0.00038904,8]
[394730083,1763919105748,-500.0,0.00038904,8]
[394730084,1763919105757,-2010.67,0.00038904,8]
[394730085,1763919105767,-500.0,0.00038904,8]
[394730086,1763919105776,-500.0,0.00038904,8]
[394730087,1763919105785,-1688.84,0.00038904,8]
[394730088,1763919105794,-1102.68,0.00038904,8]
[394730089,1763919105804,-500.0,0.00038904,8]
[394730090,1763919105813,-500.0,0.00038904,8]
[394730091,1763919105822,-545.39,0.00038904,8]
[394730092,1763919105831,-500.0,0.00038904,8]
[394730093,1763919105840,-500.0,0.00038904,8]
[394730094,1763919105850,-688.6,0.00038904,8]
[394730095,1763919105858,-500.0,0.00038904,8]
[394730096,1763919105867,-500.0,0.00038904,8]
[394730097,1763919105876,-500.0,0.00038904,8]
[394730098,1763919105885,-500.0,0.00038904,8]
[394730099,1763919105894,-758.33,0.00038904,8]
[394730100,1763919105903,-500.0,0.00038904,8]
[394730101,1763919105912,-500.0,0.00038904,8]
[394730102,1763919105921,-884.96,0.00038904,8]
[394730103,1763919105931,-500.0,0.00038904,8]
[394730104,1763919105940,-500.0,0.00038904,8]
[394730105,1763919105951,-500.0,0.00038904,8]
[394730106,1763919105959,-520.65,0.00038904,8]
[394730107,1763919105968,-500.0,0.00038904,8]
[394730108,1763919105977,-500.0,0.00038904,8]
[394730109,1763919105986,-500.0,0.00038904,8]
[394730110,1763919105996,-944.93,0.00038904,8]
[394730111,1763919106010,-675.3,0.00038904,8]
[394730112,1763919106019,-500.0,0.00038904,8]
[394730113,1763919106029,-547.6770935,0.00038904,8]
[394730114,1763919106040,-509.26,0.00038904,8]
[394730115,1763919106049,-500.0,0.00038904,8]
[394730116,1763919106059,-514.0566761,0.00038904,8]
[394730117,1763919106070,-500.0,0.00038904,8]
[394730118,1763919106080,-500.0,0.00038904,8]
[394730119,1763919106092,-500.0,0.00038904,8]
[394730120,1763919106102,-500.0,0.00038904,8]
[394730121,1763919106113,-726.29,0.00038904,8]
[394730122,1763919106123,-500.0,0.00038904,8]
[394730123,1763919106133,-500.0,0.00038904,8]
[394730124,1763919106143,-523.66,0.00038904,8]
[394730125,1763919106153,-1172.8,0.00038904,8]
[394730126,1763919106162,-500.0,0.00038904,8]
[394730127,1763919106171,-500.0,0.00038904,8]
[394730128,1763919106180,-500.0,0.00038904,8]
[394730129,1763919106189,-1295.22,0.00038904,8]
[394730130,1763919106199,-500.0,0.00038904,8]
[394730131,1763919106208,-500.0,0.00038904,8]
[394730132,1763919106219,-500.0,0.00038904,8]
[394730133,1763919106228,-500.0,0.00038904,8]
[394730134,1763919106238,-500.0,0.00038904,8]
[394730135,1763919106248,-500.0,0.00038904,8]
[394730136,1763919106257,-500.0,0.00038904,8]
[394730137,1763919106267,-500.0,0.00038904,8]
[394730138,1763919106276,-1073.64,0.00038904,8]
[394730139,1763919106285,-500.0,0.00038904,8]
[394730140,1763919106295,-500.0,0.00038904,8]
[394730141,1763919106305,-776.63,0.00038904,8]
[394730142,1763919106315,-7881.89,0.00038904,8]
[394730143,1763919106326,-520.80318549,0.00038904,8]
[394730144,1763919106336,-500.0,0.00038904,8]
[394730145,1763919106346,-1286.4,0.00038904,8]
[394730146,1763919106355,-500.0,0.00038904,8]
[394730147,1763919106365,-500.0,0.00038904,8]
[394730148,1763919106375,-500.0,0.00038904,8]
[394730149,1763919106385,-500.0,0.00038904,8]
[394730150,1763919106394,-500.0,0.00038904,8]
[394730151,1763919106404,-875.66,0.00038904,8]
[394730152,1763919106413,-551.49,0.00038904,8]
[394730153,1763919106423,-500.0,0.00038904,8]
[394730154,1763919106432,-500.0,0.00038904,8]
[394730155,1763919106442,-500.0,0.00038904,8]
[394730156,1763919106451,-500.0,0.00038904,8]
[394730157,1763919106461,-500.0,0.00038904,8]
[394730158,1763919106471,-500.0,0.00038904,8]
[394730159,1763919106480,-500.0,0.00038904,8]
[394730160,1763919106489,-500.0,0.00038904,8]
[394730161,1763919106498,-500.0,0.00038904,8]
[394730162,1763919106508,-531.66,0.00038904,8]
[394730163,1763919106517,-1151.7,0.00038904,8]
[394730164,1763919106527,-500.0,0.00038904,8]
[394730165,1763919106536,-636.9,0.00038904,8]
[394730166,1763919106545,-500.0,0.00038904,8]
[394730167,1763919106554,-500.0,0.00038904,8]
[394730168,1763919106564,-500.0,0.00038904,8]
[394730169,1763919106573,-500.0,0.00038904,8]
[394730170,1763919106582,-784.56,0.00038904,8]
[394730171,1763919106591,-500.0,0.00038904,8]
[394730172,1763919106600,-500.0,0.00038904,8]
[394730173,1763919106609,-500.0,0.00038904,8]
[394730174,1763919106619,-500.0,0.00038904,8]
[394730175,1763919106629,-500.0,0.00038904,8]
[394730176,1763919106638,-363.80667817,0.00038904,8]
[394730177,1763919106647,-500.0,0.00038904,8]
[394730178,1763919106656,-500.0,0.00038904,8]
[394730179,1763919106667,-500.0,0.00038904,8]
[394730180,1763919106677,-500.0,0.00038904,8]
[394730181,1763919106686,-734.55,0.00038904,8]
[394730182,1763919106696,-500.0,0.00038904,8]
[394730183,1763919106705,-500.0,0.00038904,8]
[394730184,1763919106715,-850.89,0.00038904,8]
[394730185,1763919106724,-825.87,0.00038904,8]
[394730186,1763919106734,-500.0,0.00038904,8]
[394730187,1763919106743,-500.0,0.00038904,8]
[394730188,1763919106752,-569.39,0.00038904,8]
[394730189,1763919106761,-500.0,0.00038904,8]
[394730190,1763919106770,-500.0,0.00038904,8]
[394730191,1763919106779,-622.59,0.00038904,8]
[394730192,1763919106788,-500.0,0.00038904,8]
[394730193,1763919106798,-500.0,0.00038904,8]
[394730194,1763919106807,-500.0,0.00038904,8]
[394730195,1763919106816,-500.0,0.00038904,8]
[394730196,1763919106826,-1070.7,0.00038904,8]
[394730197,1763919106835,-500.0,0.00038904,8]
[394730198,1763919106844,-1153.34,0.00038904,8]
[394730199,1763919106853,-456.15869907,0.00038904,8]
[394730200,1763919106861,-500.0,0.00038904,8]
[394730201,1763919106870,-178.45209612,0.00038904,8]
[394730202,1763919106879,-1250.49,0.00038904,8]
[394730203,1763919106889,-500.0,0.00038904,8]
[394730204,1763919106901,-500.0,0.00038904,8]
[394730205,1763919106910,-500.0,0.00038904,8]
[394730206,1763919106920,-500.0,0.00038904,8]
[394730207,1763919106932,-500.0,0.00038904,8]
[394730208,1763919106943,-500.0,0.00038904,8]
[394730209,1763919106952,-500.0,0.00038904,8]
[394730210,1763919106962,-500.0,0.00038904,5]
[394730211,1763919106971,-516.59,0.00038904,8]
[394730212,1763919106980,-503.49170945,0.00038904,8]
[394730213,1763919106990,-750.89,0.00038904,2]
[394730214,1763919107000,-500.0,0.00038904,8]
[394730215,1763919107014,-1385.86,0.00038904,8]
[394730216,1763919107023,-500.0,0.00038904,8]
[394730217,1763919107033,-398.11343463,0.00038904,8]
[394730218,1763919107042,-500.0,0.00038904,8]
[394730219,1763919107052,-500.0,0.00038904,8]
[394730220,1763919107062,-500.0,0.00038904,8]
[394730221,1763919107072,-1668.2,0.00038904,8]
[394730222,1763919107081,-1034.28,0.00038904,8]
[394730223,1763919107090,-500.0,0.00038904,8]
[394730224,1763919107100,-500.0,0.00038904,8]
[394730225,1763919107110,-500.0,0.00038904,8]
[394730226,1763919107120,-575.12,0.00038904,8]
[394730227,1763919107131,-500.0,0.00038904,8]
[394730228,1763919107141,-500.0,0.00038904,8]
[394730229,1763919107153,-500.0,0.00038904,8]
[394730230,1763919107163,-745.98,0.00038904,8]
[394730231,1763919107174,-500.0,0.00038904,8]
[394730232,1763919107185,-500.0,0.00038904,8]
[394730233,1763919107196,-500.0,0.00038904,8]
[394730234,1763919107208,-756.31,0.00038904,8]
[394730235,1763919107218,-500.0,0.00038904,8]
[394730236,1763919107229,-1887.14,0.00038904,8]
[394730237,1763919107238,-500.0,0.00038904,8]
[394730238,1763919107248,-1290.84,0.00038904,8]
[394730239,1763919107259,-1964.85,0.00038904,8]
[394730240,1763919107268,-1066.17,0.00038904,8]
[394730241,1763919107278,-526.65,0.00038904,8]
[394730242,1763919107288,-500.0,0.00038904,8]
[394730243,1763919107298,-500.0,0.00038904,8]
[394730244,1763919107308,-1275.82,0.00038904,8]
[394730245,1763919107318,-500.0,0.00038904,8]
[394730246,1763919107328,-500.0,0.00038904,8]
[394730247,1763919107338,-500.0,0.00038904,8]
[394730248,1763919107348,-500.0,0.00038904,8]
[394730249,1763919107358,-283.15197112,0.00038904,8]
[394730250,1763919107369,-500.0,0.00038904,8]
[394730251,1763919107380,-500.0,0.00038904,8]
[394730252,1763919107391,-1093.1,0.00038904,8]
[394730253,1763919107400,-517.13,0.00038904,8]
[394730254,1763919107411,-1607.47,0.00038904,8]
[394730255,1763919107420,-542.00870477,0.00038904,8]
[394730256,1763919107430,-572.21,0.00038904,8]
[394730257,1763919107440,-500.0,0.00038904,8]
[394730258,1763919107450,-500.0,0.00038904,8]
[394730259,1763919107459,-500.0,0.00038904,8]
[394730260,1763919107470,-1388.91,0.00038904,8]
[394730261,1763919107479,-619.01,0.00038904,8]
[394730262,1763919107489,-500.0,0.00038904,8]
[394730263,1763919107498,-500.0,0.00038904,8]
[394730264,1763919107508,-500.0,0.00038904,8]
[394730265,1763919107517,-500.0,0.00038904,8]
[394730266,1763919107528,-592.82,0.00038904,8]
[394730267,1763919107538,-624.02,0.00038904,8]
[394730268,1763919107548,-500.0,0.00038904,8]
[394730269,1763919107560,-12008.4,0.00038904,8]
[394730270,1763919107570,-500.0,0.00038904,8]
[394730271,1763919107580,-500.0,0.00038904,8]
[394730272,1763919107590,-500.0,0.00038904,8]
[394730273,1763919107600,-3293.34,0.00038904,8]
[394730274,1763919107610,-500.0,0.00038904,8]
[394730275,1763919107620,-500.0,0.00038904,8]
[394730276,1763919107630,-500.0,0.00038904,8]
[394730277,1763919107639,-500.0,0.00038904,8]
[394730278,1763919107649,-982.69,0.00038904,8]
[394730279,1763919107659,-500.0,0.00038904,8]
[394730280,1763919107669,-500.0,0.00038904,8]
[394730281,1763919107679,-500.0,0.00038904,8]
[394730282,1763919107688,-500.0,0.00038904,8]
[394730283,1763919107698,-500.0,0.00038904,8]
[394730284,1763919107708,-500.0,0.00038904,8]
[394730285,1763919107718,-500.0,0.00038904,8]
[394730286,1763919107728,-1696.97,0.00038904,8]
[394730287,1763919107738,-500.0,0.00038904,8]
[394730288,1763919107747,-500.0,0.00038904,8]
[394730289,1763919107758,-640.21901317,0.00038904,8]
[394730290,1763919107767,-500.0,0.00038904,8]
[394730291,1763919107777,-521.32,0.00038904,8]
[394730292,1763919107787,-500.0,0.00038904,8]
[394730293,1763919107799,-507.20665783,0.00038904,8]
[394730294,1763919107809,-500.0,0.00038904,8]
[394730295,1763919107819,-500.0,0.00038904,8]
[394730296,1763919107830,-661.79,0.00038904,8]
[394730297,1763919107840,-1123.02,0.00038904,8]
[394730298,1763919107850,-500.0,0.00038904,8]
[394730299,1763919107859,-510.86,0.00038904,8]
[394730300,1763919107871,-500.0,0.00038904,8]
[394730301,1763919107880,-500.0,0.00038904,8]
[394730302,1763919107890,-500.0,0.00038904,8]
[394730303,1763919107900,-500.0,0.00038904,8]
[394730304,1763919107911,-500.0,0.00038904,8]
[394730305,1763919107920,-500.0,0.00038904,8]
[394730306,1763919107930,-512.75331741,0.00038904,8]
[394730307,1763919107940,-500.0,0.00038904,8]
[394730308,1763919107950,-500.0,0.00038904,8]
[394730309,1763919107959,-500.0,0.00038904,8]
[394730310,1763919107969,-500.0,0.00038904,8]
[394730311,1763919107979,-511.68,0.00038904,8]
[394730312,1763919107989,-552.44,0.00038904,8]
[394730313,1763919108002,-500.0,0.00038904,8]
[394730314,1763919108012,-500.0,0.00038904,8]
[394730315,1763919108022,-500.0,0.00038904,8]
[394730316,1763919108031,-500.0,0.00038904,8]
[394730317,1763919108042,-500.0,0.00038904,7]
[394730318,1763919108052,-500.0,0.00038904,8]
[394730319,1763919108062,-500.0,0.00038904,8]
[394730320,1763919108072,-503.02,0.00038904,8]
[394730321,1763919108084,-1989.31,0.00038904,8]
[394730322,1763919108094,-500.0,0.00038904,8]
[394730323,1763919108104,-1000.39,0.00038904,8]
[394730324,1763919108114,-515.82,0.00038904,8]
[394730325,1763919108124,-500.0,0.00038904,8]
[394730326,1763919108135,-500.0,0.00038904,8]
[394730327,1763919108145,-500.0,0.00038904,8]
[394730328,1763919108155,-500.0,0.00038904,8]
[394730329,1763919108169,-500.0,0.00038904,8]
[394730330,1763919108179,-500.0,0.00038904,8]
[394730331,1763919108189,-500.0,0.00038904,8]